bitfinex-derivatives/quotes_SOLF0:USTF0_20240924
["timestamp","ask_amount","ask_price","bid_price","bid_amount"]
[1727161648953,3.4131,146.5,146.47,3.4137]
[1727161650051,3.4131,146.5,146.48,3.4135]
[1727161651153,3.4131,146.5,146.47,3.4137]
[1727161651550,1.3549,146.54,146.46,9.45]
[1727161651753,10.8049,146.54,146.49,9.45]
[1727161652850,3.4127,146.52,146.49,12.8632]
[1727161653553,9.45,146.52,146.48,3.4135]
[1727161653754,9.45,146.52,146.47,9.45]
[1727161654055,9.45,146.48,146.44,3.4143]
[1727161654253,9.45,146.48,146.43,9.45]
[1727161654451,12.8637,146.48,146.43,9.45]
[1727161654758,3.4137,146.48,146.44,9.45]
[1727161655656,3.4136,146.48,146.45,3.4141]
[1727161655864,3.4136,146.48,146.41,1.3282]
[1727161655865,9.45,146.48,146.43,9.45]
[1727161656064,9.45,146.48,146.44,3.4144]
[1727161656755,3.4139,146.47,146.44,3.4144]
[1727161660256,4.69050193,146.54,146.46,9.45]
[1727161660257,1.3549,146.54,146.46,9.45]
[1727161660455,9.45,146.51,146.46,9.45]
[1727161660964,9.45,146.48,146.43,9.45]
[1727161661156,9.45,146.49,146.44,9.45]
[1727161661364,3.4137,146.48,146.45,3.4141]
[1727161664758,9.45,146.47,146.44,3.4144]
[1727161664969,9.45,146.47,146.42,9.45]
[1727161665558,3.4142,146.46,146.43,3.4146]
[1727161666158,12.8643,146.45,146.42,3.4149]
[1727161667055,9.45,146.43,146.27,81.96]
[1727161667255,9.45,146.4,146.35,9.45]
[1727161667454,9.45,146.41,146.36,9.45]
[1727161668063,9.45,146.41,146.37,3.416]
[1727161668966,3.4153,146.41,146.38,3.4158]
[1727161671570,3.4154,146.4,146.37,3.4161]
[1727161673865,3.4154,146.4,146.35,9.45]
[1727161674270,3.4154,146.4,146.36,9.45]
[1727161674875,3.4154,146.4,146.37,3.416]
[1727161675074,12.8653,146.41,146.36,9.45]
[1727161675669,3.4153,146.41,146.38,3.4159]
[1727161675871,3.415,146.42,146.38,9.45]
[1727161676173,9.45,146.44,146.39,3.4155]
[1727161676379,3.4151,146.42,146.39,3.4155]
[1727161684379,3.4147,146.44,146.38,9.45]
[1727161684783,9.45,146.44,146.38,9.45]
[1727161685083,3.4149,146.43,146.4,3.4153]
[1727161688087,9.45,146.44,146.38,9.45]
[1727161688886,3.4149,146.43,146.4,3.4153]
[1727161689082,9.45,146.44,146.4,3.4153]
[1727161689590,3.4149,146.43,146.4,3.4153]
[1727161696598,12.8649,146.43,146.4,3.4153]
[1727161698189,3.4149,146.43,146.4,3.4153]
[1727161703097,9.45,146.42,146.37,9.45]
[1727161703606,3.4152,146.41,146.38,3.4157]
[1727161705603,3.4152,146.41,146.39,3.4156]
[1727161705902,9.45,146.44,146.39,9.45]
[1727161706300,12.8647,146.44,146.41,3.4151]
[1727161706501,9.45,146.43,146.41,3.4151]
[1727161706901,12.8648,146.43,146.4,3.4154]
[1727161707503,3.4146,146.44,146.41,3.4152]
[1727161707707,12.8646,146.44,146.41,3.4152]
[1727161708203,1.3873,146.49,146.42,3.4149]
[1727161708506,9.45,146.46,146.42,3.4149]
[1727161709909,3.4143,146.45,146.42,3.4149]
[1727161712604,1.3873,146.49,146.44,9.45]
[1727161712805,10.8373,146.49,146.44,9.45]
[1727161713200,10.8373,146.49,146.43,9.45]
[1727161713905,3.4138,146.47,146.45,3.4141]
[1727161714506,3.4137,146.48,146.45,3.4141]
[1727161728423,224.0,146.58,146.47,9.45]
[1727161728612,9.45,146.52,146.47,9.45]
[1727161729018,3.4131,146.5,146.48,3.4135]
[1727161730121,3.4129,146.51,146.48,3.4135]
[1727161730528,9.45,146.52,146.48,3.4135]
[1727161731528,3.4131,146.5,146.48,3.4135]
[1727161732623,3.4133,146.49,146.47,3.4137]
[1727161732823,9.45,146.48,146.43,4.67456742]
[1727161733033,9.45,146.48,146.43,9.45]
[1727161733618,3.4139,146.47,146.44,3.4144]
[1727161734229,9.45,146.45,146.39,4.67565204]
[1727161734431,9.45,146.44,146.39,9.45]
[1727161734728,12.8644,146.45,146.42,3.4149]
[1727161736323,1.3673,146.47,146.42,9.45]
[1727161736726,1.3673,146.47,146.43,9.45]
[1727161737931,4.7811,146.47,146.44,3.4144]
[1727161742228,3.4138,146.47,146.44,3.4144]
[1727161744533,3.4141,146.46,146.43,3.4146]
[1727161745933,9.45,146.46,146.37,2.7483]
[1727161746233,9.45,146.44,146.4,9.45]
[1727161746438,9.45,146.44,146.37,2.7483]
[1727161746740,9.45,146.44,146.39,9.45]
[1727161747739,3.4147,146.44,146.41,12.8651]
[1727161752543,12.8647,146.44,146.41,3.4151]
[1727161757141,1.341,146.51,146.42,9.45]
[1727161757343,1.341,146.51,146.43,9.45]
[1727161757645,9.45,146.49,146.43,9.45]
[1727161757845,3.4139,146.47,146.44,3.4143]
[1727161758041,12.8639,146.47,146.44,3.4143]
[1727161758544,3.414,146.46,146.44,3.4143]
[1727161761942,3.414,146.46,146.4,4.68368919]
[1727161762142,3.414,146.46,146.42,9.45]
[1727161763740,3.414,146.46,146.42,12.8647]
[1727161764846,3.414,146.46,146.43,3.4147]
[1727161771952,1.341,146.51,146.43,9.45]
[1727161772153,9.45,146.49,146.43,9.45]
[1727161772455,3.4137,146.48,146.45,3.4142]
[1727161773547,12.8638,146.47,146.44,3.4144]
[1727161774052,12.8638,146.47,146.42,9.45]
[1727161774454,9.45,146.47,146.45,3.4142]
[1727161777552,12.8636,146.48,146.45,3.4142]
[1727161777752,12.8636,146.48,146.46,3.414]
[1727161777951,3.4134,146.49,146.46,3.414]
[1727161778152,3.4134,146.49,146.45,9.45]
[1727161778565,3.4134,146.49,146.46,3.4138]
[1727161780161,3.4136,146.48,146.46,3.4138]
[1727161781853,1.341,146.51,146.46,9.45]
[1727161782060,1.341,146.51,146.47,9.45]
[1727161782956,1.341,146.51,146.48,3.4135]
[1727161786266,4.7539,146.51,146.48,3.4135]
[1727161786761,9.45,146.52,146.49,3.4133]
[1727161787858,3.4129,146.51,146.49,3.4133]
[1727161789870,3.4129,146.51,146.48,3.4134]
[1727161790455,3.4129,146.51,146.47,9.45]
[1727161791062,3.4129,146.51,146.48,3.4134]
[1727161792464,3.4129,146.51,146.47,3.4137]
[1727161792465,3.4131,146.5,146.47,3.4137]
[1727161792670,9.45,146.51,146.47,3.4137]
[1727161792867,9.45,146.51,146.45,9.45]
[1727161793070,3.4136,146.48,146.45,3.4141]
[1727161793375,9.45,146.48,146.43,12.81258108]
[1727161793571,9.45,146.48,146.43,9.45]
[1727161794374,9.45,146.46,146.41,9.45]
[1727161794778,3.4143,146.45,146.42,3.4148]
[1727161795872,3.4143,146.45,146.41,12.8651]
[1727161796875,3.4143,146.45,146.42,3.4149]
[1727161797080,3.4143,146.45,146.41,9.45]
[1727161797380,9.45,146.44,146.4,83.2886]
[1727161797575,9.45,146.42,146.35,3.35052955]
[1727161797777,9.45,146.42,146.37,9.45]
[1727161798083,9.45,146.42,146.39,3.4155]
[1727161799069,12.8649,146.43,146.39,3.4155]
[1727161799279,12.8649,146.43,146.39,12.8655]
[1727161799873,3.4149,146.43,146.39,12.8655]
[1727161800083,10.8237,146.45,146.4,9.45]
[1727161800273,10.8237,146.45,146.41,9.45]
[1727161801072,2.6278,146.49,146.42,9.45]
[1727161801273,9.45,146.47,146.43,9.45]
[1727161801472,4.7302,146.49,146.45,9.45]
[1727161802484,3.4134,146.49,146.45,12.8641]
[1727161802687,3.4136,146.48,146.45,12.8641]
[1727161803179,9.45,146.48,146.44,3.4144]
[1727161804286,3.4139,146.47,146.44,3.4144]
[1727161805287,12.8639,146.47,146.43,12.8646]
[1727161805475,9.45,146.47,146.42,9.45]
[1727161805675,9.45,146.46,146.38,4.67884362]
[1727161805880,9.45,146.46,146.42,3.4149]
[1727161806084,9.45,146.45,146.42,3.4149]
[1727161806383,3.4142,146.46,146.42,3.4149]
[1727161806384,1.39,146.52,146.42,3.4149]
[1727161806586,12.8642,146.46,146.42,12.8649]
[1727161808591,3.4143,146.45,146.42,12.8649]
[1727161808885,9.45,146.45,146.4,9.45]
[1727161809090,9.45,146.43,146.38,14.13105906]
[1727161809285,12.8649,146.43,146.39,3.4155]
[1727161809590,12.8649,146.43,146.38,9.45]
[1727161810184,12.8649,146.43,146.4,3.4154]
[1727161810384,12.8649,146.43,146.38,9.45]
[1727161810582,9.45,146.4,146.36,1.3448]
[1727161810786,9.45,146.4,146.36,3.4162]
[1727161810990,9.45,146.4,146.34,81.96]
[1727161811185,9.45,146.39,146.34,81.96]
[1727161811687,9.45,146.39,146.34,91.41]
[1727161811893,9.45,146.39,146.34,9.45]
[1727161812086,9.45,146.39,146.35,3.4165]
[1727161812990,12.8658,146.39,146.35,3.4165]
[1727161813395,3.4158,146.39,146.36,3.4163]
[1727161814093,12.8654,146.4,146.37,3.416]
[1727161814495,12.8654,146.4,146.36,9.45]
[1727161814681,3.4158,146.39,146.35,3.4165]
[1727161814992,9.45,146.4,146.34,9.45]
[1727161815191,12.8655,146.4,146.36,12.8662]
[1727161815392,3.4155,146.4,146.36,9.45]
[1727161815786,3.4155,146.4,146.36,12.8661]
[1727161817388,3.4155,146.4,146.37,12.8661]
[1727161818096,9.45,146.44,146.38,9.45]
[1727161819092,3.415,146.42,146.39,3.4155]
[1727161819395,4.1467,146.45,146.4,9.45]
[1727161819698,1.3061,146.45,146.41,9.45]
[1727161820093,14.1706,146.45,146.41,12.8651]
[1727161821592,14.1706,146.45,146.42,3.4149]
[1727161827098,1.3061,146.45,146.41,9.45]
[1727161827602,4.7205,146.45,146.42,3.4149]
[1727161827905,14.1705,146.45,146.42,3.4149]
[1727161828898,3.4145,146.44,146.41,3.4151]
[1727161829107,10.7561,146.45,146.39,9.45]
[1727161829898,9.45,146.44,146.39,9.45]
[1727161830099,3.4149,146.43,146.4,3.4153]
[1727161830299,9.45,146.42,146.35,8.04265012]
[1727161830502,9.45,146.42,146.37,9.45]
[1727161831509,3.4155,146.4,146.37,12.866]
[1727161831706,9.45,146.42,146.37,12.866]
[1727161831908,9.45,146.41,146.37,12.866]
[1727161832100,9.45,146.41,146.36,3.4162]
[1727161832306,9.45,146.39,146.36,3.4162]
[1727161832708,12.8657,146.39,146.36,3.4162]
[1727161834412,3.4162,146.37,146.32,6.08538412]
[1727161834710,9.45,146.36,146.32,9.45]
[1727161834914,9.45,146.36,146.28,4.0426]
[1727161835108,12.8665,146.36,146.32,3.4171]
[1727161837616,12.8665,146.36,146.32,12.8671]
[1727161839215,3.4169,146.34,146.31,81.98]
[1727161839415,9.45,146.32,146.28,10.7909]
[1727161840621,9.45,146.32,146.28,9.45]
[1727161840820,12.8673,146.32,146.29,3.4178]
[1727161841021,9.45,146.32,146.29,3.4178]
[1727161842428,9.45,146.34,146.3,3.4176]
[1727161842627,9.45,146.34,146.3,12.8676]
[1727161843330,12.8669,146.34,146.31,3.4175]
[1727161843634,9.45,146.34,146.31,3.4175]
[1727161844329,9.45,146.33,146.3,3.4177]
[1727161845831,12.8671,146.33,146.3,3.4177]
[1727161846739,12.8673,146.32,146.28,3.4181]
[1727161849031,9.45,146.31,146.28,3.4181]
[1727161849231,12.8681,146.29,146.24,10.8277]
[1727161849638,12.8681,146.29,146.25,3.4188]
[1727161850637,3.4182,146.28,146.25,3.4188]
[1727161851043,9.45,146.29,146.25,3.4188]
[1727161851246,9.45,146.29,146.25,12.8688]
[1727161851642,12.8681,146.29,146.25,12.8688]
[1727161852546,1.3829,146.31,146.27,9.45]
[1727161853841,4.8005,146.31,146.28,3.4181]
[1727161854646,9.45,146.3,146.27,3.4183]
[1727161855249,4.8005,146.31,146.27,3.4183]
[1727161855546,14.2505,146.31,146.27,3.4183]
[1727161855746,10.8329,146.31,146.27,9.45]
[1727161856144,4.8005,146.31,146.28,3.4181]
[1727161857157,4.8005,146.31,146.24,10.8277]
[1727161857158,9.45,146.29,146.24,10.8277]
[1727161857645,12.8682,146.29,146.26,3.4186]
[1727161857845,12.8682,146.29,146.24,10.8277]
[1727161858552,12.8682,146.29,146.25,3.4188]
[1727161858947,12.8682,146.29,146.24,10.8277]
[1727161859352,9.45,146.26,146.18,71.49595293]
[1727161859548,9.45,146.26,146.21,9.45]
[1727161859851,3.4185,146.27,146.23,9.45]
[1727161859852,9.45,146.27,146.23,9.45]
[1727161860054,2.6961,146.3,146.25,3.4189]
[1727161860249,12.1461,146.3,146.25,9.45]
[1727161861356,2.6961,146.3,146.25,9.45]
[1727161861555,12.1461,146.3,146.25,9.45]
[1727161861753,3.418,146.29,146.26,3.4186]
[1727161862251,12.1461,146.3,146.21,3.40982046]
[1727161862452,9.45,146.28,146.23,9.45]
[1727161862956,12.8682,146.28,146.25,3.4188]
[1727161863150,9.45,146.28,146.25,3.4188]
[1727161863350,4.8005,146.31,146.28,3.4181]
[1727161863556,10.8329,146.31,146.26,9.45]
[1727161864753,3.418,146.29,146.26,3.4187]
[1727161865060,9.45,146.29,146.24,9.45]
[1727161865358,9.45,146.27,146.24,3.4191]
[1727161865846,2.6971,146.3,146.18,72.80435293]
[1727161865847,9.45,146.26,146.23,3.4193]
[1727161866461,9.45,146.28,146.24,3.419]
[1727161866951,12.8684,146.28,146.24,3.419]
[1727161868761,12.8685,146.27,146.24,3.419]
[1727161869956,3.4185,146.27,146.24,3.419]
[1727161870155,3.4181,146.29,146.24,9.45]
[1727161870358,12.1471,146.3,146.24,9.45]
[1727161870652,12.1471,146.3,146.26,3.4186]
[1727161870653,3.4181,146.29,146.26,3.4186]
[1727161871160,3.4181,146.29,146.24,9.45]
[1727161871357,12.8681,146.29,146.24,9.45]
[1727161871558,12.8681,146.29,146.25,3.4188]
[1727161872056,3.4182,146.28,146.25,3.4188]
[1727161873153,9.45,146.29,146.25,3.4188]
[1727161873154,12.8681,146.29,146.25,3.4188]
[1727161873353,1.3829,146.31,146.27,9.45]
[1727161873758,1.3829,146.31,146.27,12.8683]
[1727161873962,10.8329,146.31,146.27,12.8683]
[1727161874463,3.4178,146.3,146.27,12.8683]
[1727161876758,14.2505,146.31,146.27,12.8683]
[1727161877161,9.45,146.33,146.28,9.45]
[1727161877557,9.45,146.33,146.3,3.4177]
[1727161878651,12.8671,146.33,146.31,3.4175]
[1727161879551,3.4169,146.34,146.29,9.45]
[1727161879859,3.4169,146.34,146.31,3.4174]
[1727161880067,3.4167,146.35,146.31,9.45]
[1727161880259,12.8667,146.35,146.31,9.45]
[1727161880461,9.45,146.35,146.31,9.45]
[1727161880964,9.45,146.34,146.31,9.45]
[1727161881465,12.8668,146.34,146.31,12.8674]
[1727161883856,3.4168,146.35,146.31,9.45]
[1727161884161,10.8616,146.36,146.32,9.45]
[1727161884559,14.2781,146.36,146.33,3.4169]
[1727161885766,9.45,146.34,146.28,9.45]
[1727161886767,3.4172,146.33,146.3,3.4177]
[1727161889159,9.45,146.33,146.23,2.6334]
[1727161889467,9.45,146.32,146.27,9.45]
[1727161889964,12.8675,146.32,146.28,3.418]
[1727161890169,9.45,146.32,146.28,3.418]
[1727161891365,3.4176,146.31,146.28,3.418]
[1727161892163,12.8674,146.32,146.28,3.418]
[1727161892666,12.8674,146.32,146.29,3.4179]
[1727161893260,12.8674,146.32,146.28,3.4181]
[1727161898366,12.8674,146.32,146.29,3.418]
[1727161898864,1.4116,146.36,146.3,9.45]
[1727161899063,10.8616,146.36,146.31,9.45]
[1727161899970,3.4168,146.35,146.31,12.8673]
[1727161901169,3.4168,146.35,146.32,3.4171]
[1727161901366,1.4116,146.36,146.32,9.45]
[1727161902168,1.4116,146.36,146.33,3.417]
[1727161902371,10.8616,146.36,146.33,3.417]
[1727161902568,10.8616,146.36,146.32,12.8671]
[1727161903464,1.4116,146.36,146.34,3.4168]
[1727161905067,4.828,146.36,146.34,3.4168]
[1727161907870,1.4116,146.36,146.34,3.4168]
[1727161908072,3.4163,146.37,146.34,3.4168]
[1727161910166,9.45,146.38,146.35,3.4166]
[1727161910167,12.866,146.38,146.35,3.4166]
[1727161911163,3.4162,146.37,146.34,12.8667]
[1727161916370,9.45,146.38,146.34,9.45]
[1727161916371,3.4159,146.38,146.34,9.45]
[1727161916773,3.4159,146.38,146.35,3.4165]
[1727161917777,3.4159,146.38,146.35,12.8665]
[1727161918477,3.4161,146.37,146.35,12.8665]
[1727161919683,3.4161,146.37,146.34,3.4167]
[1727161919880,3.4164,146.36,146.32,9.45]
[1727161920183,3.4164,146.36,146.33,3.417]
[1727161921184,12.8662,146.37,146.33,3.417]
[1727161921880,3.4162,146.37,146.34,3.4168]
[1727161923088,3.4165,146.36,146.29,4.67723389]
[1727161923285,3.4165,146.36,146.32,9.45]
[1727161923479,9.45,146.37,146.32,9.45]
[1727161923681,3.4166,146.35,146.32,12.8672]
[1727161924281,3.4169,146.34,146.31,3.4175]
[1727161933193,3.4169,146.34,146.3,12.8676]
[1727161934581,3.4169,146.34,146.31,3.4175]
[1727161936794,3.4171,146.33,146.3,3.4177]
[1727161936988,9.45,146.34,146.28,1.3407]
[1727161937189,9.45,146.33,146.27,4.68020911]
[1727161937588,9.45,146.33,146.28,9.45]
[1727161937995,3.4177,146.31,146.27,3.4184]
[1727161938198,3.4177,146.31,146.27,12.8684]
[1727161940893,3.4177,146.31,146.28,3.4182]
[1727161941995,4.0847,146.37,146.29,3.418]
[1727161942194,9.45,146.34,146.29,3.418]
[1727161942495,3.4172,146.33,146.29,3.418]
[1727161942897,9.45,146.34,146.29,3.418]
[1727161943494,3.4174,146.32,146.29,3.418]
[1727161945401,3.4176,146.31,146.28,12.8681]
[1727161948590,3.4176,146.31,146.28,3.4181]
[1727161950505,3.4176,146.31,146.27,12.8684]
[1727161951402,3.4176,146.31,146.28,3.4182]
[1727161954897,3.4174,146.32,146.28,3.4182]
[1727161955104,9.45,146.34,146.29,12.8679]
[1727161955395,4.0847,146.37,146.31,9.45]
[1727161955599,3.4167,146.35,146.31,12.8674]
[1727161956301,3.4167,146.35,146.32,3.4173]
[1727161957005,12.8667,146.35,146.32,3.4173]
[1727161962700,30.80234099,146.46,146.33,9.45]
[1727161962903,9.45,146.39,146.33,9.45]
[1727161963410,3.4161,146.37,146.34,3.4166]
[1727161964108,3.4161,146.37,146.35,3.4166]
[1727161966903,3.4158,146.39,146.35,9.45]
[1727161967106,80.09185779,146.41,146.37,9.45]
[1727161967307,80.09185779,146.41,146.39,9.45]
[1727161967813,80.09185779,146.41,146.4,12.8654]
[1727161968011,1.3471,146.44,146.4,9.45]
[1727161968213,27.39793722,146.5,146.41,9.45]
[1727161968515,3.4136,146.48,146.44,9.45]
[1727161969809,3.4136,146.48,146.45,3.4142]
[1727161970410,3.4136,146.48,146.44,9.45]
[1727161970411,3.4136,146.48,146.44,12.8644]
[1727161970813,12.8636,146.48,146.44,12.8644]
[1727161973413,3.4138,146.47,146.44,12.8644]
[1727161976614,12.8636,146.48,146.44,12.8644]
[1727161978927,12.8636,146.48,146.44,3.4144]
[1727161980222,3.4138,146.47,146.44,3.4144]
[1727161981820,3.4136,146.48,146.45,12.8642]
[1727161982021,2.7489,146.5,146.46,9.45]
[1727161982022,1.3583,146.5,146.46,9.45]
[1727161982213,9.45,146.51,146.46,9.45]
[1727161982616,3.4132,146.5,146.47,3.4136]
[1727161983221,3.4129,146.51,146.48,3.4135]
[1727161983519,9.45,146.52,146.47,9.45]
[1727161983714,3.4131,146.51,146.47,9.45]
[1727161983920,3.4131,146.51,146.46,9.45]
[1727161983921,9.45,146.51,146.46,9.45]
[1727161984622,3.4135,146.49,146.46,9.45]
[1727161988324,3.4135,146.49,146.47,9.45]
[1727161988814,9.45,146.51,146.47,9.45]
[1727161989221,3.4135,146.49,146.46,3.414]
[1727161989418,3.4135,146.49,146.46,12.864]
[1727161990018,3.4132,146.5,146.46,12.864]
[1727161990220,3.4132,146.5,146.48,9.45]
[1727161991028,9.45,146.54,146.49,9.45]
[1727161992023,3.413,146.51,146.49,9.45]
[1727161995727,1.4067,146.55,146.49,12.8631]
[1727161995924,1.4067,146.55,146.52,9.45]
[1727161996134,1.3966,146.56,146.52,9.45]
[1727161996333,9.45,146.58,146.52,9.45]
[1727161996928,1.3211,146.59,146.53,9.45]
[1727161997125,1.3211,146.59,146.54,9.3929187]
[1727161997327,9.45,146.61,146.55,9.45]
[1727161997530,9.45,146.61,146.55,12.8618]
[1727161998135,3.4113,146.58,146.55,3.4118]
[1727161998340,3.4113,146.58,146.55,12.8618]
[1727162000231,3.4113,146.58,146.55,9.45]
[1727162000833,3.4115,146.57,146.55,9.45]
[1727162001936,3.4113,146.58,146.55,9.45]
[1727162002130,3.4113,146.58,146.56,9.45]
[1727162005640,9.45,146.6,146.57,9.45]
[1727162005641,3.4109,146.6,146.57,9.45]
[1727162005837,3.4109,146.6,146.59,9.45]
[1727162007532,3.4106,146.61,146.59,9.45]
[1727162010046,10.7644,146.63,146.51,81.9]
[1727162010249,10.7644,146.63,146.58,9.45]
[1727162010754,3.4109,146.6,146.58,9.45]
[1727162010941,10.7644,146.63,146.51,81.9]
[1727162011144,9.45,146.61,146.54,3.4121]
[1727162011336,9.45,146.61,146.55,9.45]
[1727162012147,3.4114,146.58,146.55,9.45]
[1727162012549,3.4114,146.58,146.57,9.45]
[1727162013243,3.4111,146.59,146.57,9.45]
[1727162013448,3.4111,146.59,146.58,9.45]
[1727162013947,1.3144,146.63,146.58,9.45]
[1727162013948,3.4108,146.6,146.58,9.45]
[1727162014144,3.4108,146.6,146.59,9.45]
[1727162018153,3.4108,146.6,146.58,9.45]
[1727162022753,3.4108,146.6,146.59,9.45]
[1727162023657,3.411,146.59,146.5,83.2919]
[1727162023854,1.3144,146.63,146.58,9.45]
[1727162024054,1.3144,146.63,146.5,83.2919]
[1727162024055,1.3144,146.63,146.6,9.45]
[1727162024754,3.4106,146.61,146.6,9.45]
[1727162026552,1.3144,146.63,146.51,81.88]
[1727162026753,9.45,146.62,146.57,9.45]
[1727162026957,9.45,146.62,146.58,9.45]
[1727162027260,3.4111,146.59,146.55,3.4117]
[1727162027458,3.4111,146.59,146.58,9.45]
[1727162032164,3.4107,146.61,146.58,9.45]
[1727162032363,3.4107,146.61,146.6,9.45]
[1727162033252,3.4107,146.61,146.56,3.36153442]
[1727162033459,3.4108,146.6,146.59,9.45]
[1727162036554,1.3088,146.63,146.59,9.45]
[1727162036761,1.3088,146.63,146.6,9.45]
[1727162037868,3.4107,146.61,146.6,9.45]
[1727162038863,1.3088,146.63,146.59,9.45]
[1727162039166,1.3337,146.66,146.61,9.45]
[1727162039369,10.7837,146.66,146.62,9.45]
[1727162039666,10.7837,146.66,146.61,9.45]
[1727162039855,3.4103,146.62,146.61,9.45]
[1727162043762,9.45,146.64,146.51,81.88]
[1727162043964,9.45,146.61,146.51,81.88]
[1727162044166,12.86521664,146.61,146.56,9.45]
[1727162046268,9.45,146.6,146.56,9.45]
[1727162046863,3.4115,146.57,146.56,9.45]
[1727162047365,3.4115,146.57,146.54,3.4121]
[1727162047565,3.4115,146.57,146.55,9.45]
[1727162048361,1.305,146.62,146.56,9.45]
[1727162048566,1.305,146.62,146.58,9.45]
[1727162048767,3.4107,146.61,146.58,12.8612]
[1727162049075,3.4107,146.61,146.6,9.45]
[1727162052575,1.4261,146.63,146.57,9.45]
[1727162052576,3.4111,146.59,146.57,9.45]
[1727162052873,12.2727,146.63,146.57,9.45]
[1727162053066,3.4109,146.6,146.57,12.8615]
[1727162056775,3.411,146.59,146.57,12.8615]
[1727162059781,3.411,146.59,146.57,9.45]
[1727162060179,3.411,146.59,146.57,12.8614]
[1727162062485,2.8227,146.63,146.58,12.8612]
[1727162062683,12.2727,146.63,146.58,12.8612]
[1727162063093,3.4107,146.61,146.58,12.8612]
[1727162063587,12.2727,146.63,146.58,9.45]
[1727162065885,3.4108,146.6,146.58,9.45]
[1727162066476,3.4108,146.6,146.57,3.4113]
[1727162066681,3.4108,146.6,146.58,9.45]
[1727162067789,12.2727,146.63,146.59,9.45]
[1727162067790,2.8227,146.63,146.59,9.45]
[1727162067989,2.8227,146.63,146.6,9.45]
[1727162068489,3.4105,146.62,146.6,9.45]
[1727162069581,3.4105,146.61,146.6,9.45]
[1727162069778,3.4105,146.61,146.59,9.45]
[1727162073194,3.4108,146.6,146.57,3.4114]
[1727162073489,3.4108,146.6,146.58,9.45]
[1727162080703,3.4106,146.61,146.59,9.45]
[1727162082316,9.45,146.63,146.57,9.45]
[1727162082507,10.8339,146.63,146.57,9.45]
[1727162082803,3.4112,146.59,146.57,9.45]
[1727162084203,3.4108,146.6,146.57,12.8613]
[1727162084403,3.4108,146.6,146.57,3.4113]
[1727162084605,3.4108,146.6,146.58,9.45]
[1727162085206,3.411,146.59,146.58,9.45]
[1727162087400,3.4113,146.58,146.56,9.45]
[1727162088510,1.3839,146.63,146.57,9.45]
[1727162088808,1.3813,146.64,146.6,9.45]
[1727162089808,3.4105,146.62,146.6,9.45]
[1727162094916,3.4105,146.61,146.6,9.45]
[1727162095315,3.4105,146.61,146.58,3.4112]
[1727162095618,3.4108,146.6,146.59,9.45]
[1727162097018,10.8313,146.64,146.59,9.45]
[1727162097019,3.4106,146.61,146.59,9.45]